lending/lending_fUSD_20240112
["ID","MTS","AMOUNT","RATE_DAILY","PERIOD"]
[311379589,1705069952104,-341.167574,0.00035616,7]
[311379590,1705069952114,-341.167574,0.00035616,7]
[311379591,1705069952123,-341.167574,0.00035616,7]
[311379592,1705069952133,-341.167574,0.00035616,7]
[311379593,1705069952142,-341.167574,0.00035616,7]
[311379594,1705069952152,-341.167574,0.00035616,7]
[311379595,1705069952161,-341.167574,0.00035616,7]
[311379596,1705069952171,-341.167575,0.00035616,7]
[311379597,1705069952180,-151.0,0.00035616,7]
[311379598,1705069952190,-151.0,0.00035616,7]
[311379599,1705069952199,-151.0,0.00035616,7]
[311379600,1705069952208,-151.0,0.00035616,7]
[311379601,1705069952219,-151.0,0.00035616,7]
[311379602,1705069952228,-151.0,0.00035616,7]
[311379603,1705069952238,-151.0,0.00035616,7]
[311379604,1705069952247,-172.846378,0.00035616,7]
[311379605,1705069952259,-151.0,0.00035616,7]
[311379606,1705069952268,-151.0,0.00035616,7]
[311379607,1705069952278,-151.0,0.00035616,7]
[311379608,1705069952287,-151.0,0.00035616,7]
[311379609,1705069952300,-1174.310812,0.00035616,7]
[311379610,1705069952310,-1174.310812,0.00035616,7]
[311379611,1705069952319,-1174.310812,0.00035616,7]
[311379612,1705069952330,-1174.310812,0.00035616,7]
[311379613,1705069952340,-1174.310812,0.00035616,7]
[311379614,1705069952350,-1174.310812,0.00035616,7]
[311379615,1705069952360,-1174.310812,0.00035616,7]
[311379616,1705069952370,-1174.310812,0.00035616,7]
[311379617,1705069952380,-1174.310812,0.00035616,7]
[311379618,1705069952389,-1174.310812,0.00035616,7]
[311379619,1705069952399,-1174.310812,0.00035616,7]
[311379620,1705069952409,-1174.310812,0.00035616,7]
[311379621,1705069952419,-1174.310812,0.00035616,7]
[311379622,1705069952429,-1174.310812,0.00035616,7]
[311379623,1705069952448,-1174.310812,0.00035616,7]
[311379624,1705069952462,-1174.310812,0.00035616,7]
[311379625,1705069952473,-1174.310812,0.00035616,7]
[311379626,1705069952485,-1174.310812,0.00035616,7]
[311379627,1705069952496,-1174.310812,0.00035616,7]
[311379628,1705069952506,-1174.310805,0.00035616,7]
[311379629,1705069952517,-151.0,0.00035616,7]
[311379630,1705069952527,-151.0,0.00035616,7]
[311379631,1705069952538,-151.0,0.00035616,7]
[311379632,1705069952549,-151.0,0.00035616,7]
[311379633,1705069952561,-151.0,0.00035616,7]
[311379634,1705069952572,-151.0,0.00035616,7]
[311379635,1705069952826,-151.0,0.00035616,7]
[311379636,1705069952835,-151.0,0.00035616,7]
[311379637,1705069952845,-151.0,0.00035616,7]
[311379638,1705069952855,-151.0,0.00035616,7]
[311379639,1705069952866,-151.0,0.00035616,7]
[311379640,1705069952877,-157.451141,0.00035616,7]
[311379641,1705069952887,-151.0,0.00035616,7]
[311379642,1705069952897,-151.0,0.00035616,7]
[311379643,1705069952907,-151.0,0.00035616,7]
[311379644,1705069952918,-151.0,0.00035616,7]
[311379645,1705069952929,-151.0,0.00035616,7]
[311379646,1705069952939,-151.0,0.00035616,7]
[311379647,1705069952951,-151.0,0.00035616,7]
[311379648,1705069952962,-151.0,0.00035616,7]
[311379649,1705069952972,-151.0,0.00035616,7]
[311379650,1705069952982,-249.418381,0.00035616,7]
[311379651,1705069952993,-1922.337468,0.00035616,7]
[311379652,1705069953004,-1922.337468,0.00035616,7]
[311379653,1705069953015,-1922.337468,0.00035616,7]
[311379654,1705069953026,-1922.337468,0.00035616,7]
[311379655,1705069953037,-1922.337468,0.00035616,7]
[311379656,1705069953049,-1922.337468,0.00035616,7]
[311379657,1705069953059,-1922.337468,0.00035616,7]
[311379658,1705069953069,-1922.337468,0.00035616,7]
[311379659,1705069953080,-1922.337468,0.00035616,7]
[311379660,1705069953090,-1922.337468,0.00035616,7]
[311379661,1705069953101,-1922.337468,0.00035616,7]
[311379662,1705069953112,-1922.337468,0.00035616,7]
[311379663,1705069953122,-1922.337468,0.00035616,7]
[311379664,1705069953136,-1922.337468,0.00035616,7]
[311379665,1705069953147,-1922.337468,0.00035616,7]
[311379666,1705069953157,-1922.337468,0.00035616,7]
[311379667,1705069953167,-1922.337468,0.00035616,7]
[311379668,1705069953178,-1922.337468,0.00035616,7]
[311379669,1705069953187,-1922.337468,0.00035616,7]
[311379670,1705069953197,-1922.337468,0.00035616,7]
[311379671,1705069953208,-151.72318,0.00035616,7]
[311379672,1705069953219,-151.0,0.00035616,7]
[311379673,1705069953230,-151.0,0.00035616,7]
[311379674,1705069953240,-151.0,0.00035616,7]
[311379675,1705069953251,-151.0,0.00035616,7]
[311379676,1705069953261,-151.0,0.00035616,7]
[311379677,1705069953270,-151.0,0.00035616,7]
[311379678,1705069953280,-245.956193,0.00035616,7]
[311379679,1705069953290,-441.834862,0.00035616,7]
[311379680,1705069953302,-441.834862,0.00035616,7]
[311379681,1705069953313,-441.834862,0.00035616,7]
[311379682,1705069953322,-441.834862,0.00035616,7]
[311379683,1705069953332,-441.834862,0.00035616,7]
[311379684,1705069953343,-441.834862,0.00035616,7]
[311379685,1705069953352,-441.834862,0.00035616,7]
[311379686,1705069953361,-441.834862,0.00035616,7]
[311379687,1705069953370,-441.834862,0.00035616,7]
[311379688,1705069953379,-441.834862,0.00035616,7]
[311379689,1705069953388,-441.834862,0.00035616,7]
[311379690,1705069953397,-441.834862,0.00035616,7]
[311379691,1705069953408,-441.834862,0.00035616,7]
[311379692,1705069953417,-441.834862,0.00035616,7]
[311379693,1705069953427,-441.834862,0.00035616,7]
[311379694,1705069953436,-441.834862,0.00035616,7]
[311379695,1705069953446,-441.834862,0.00035616,7]
[311379696,1705069953455,-441.834862,0.00035616,7]
[311379697,1705069953464,-441.834862,0.00035616,7]
[311379698,1705069953473,-441.834869,0.00035616,7]
[311379699,1705069953482,-151.0,0.00035616,7]
[311379700,1705069953491,-151.0,0.00035616,7]
[311379701,1705069953501,-151.0,0.00035616,7]
[311379702,1705069953510,-151.0,0.00035616,7]
[311379703,1705069953519,-176.300185,0.00035616,7]
[311379704,1705069953528,-10000.0,0.00035616,7]
[311379705,1705069953537,-10000.0,0.00035616,7]
[311379706,1705069953549,-10000.0,0.00035616,7]
[311379707,1705069953559,-10000.0,0.00035616,7]
[311379708,1705069953568,-10000.0,0.00035616,7]
[311379709,1705069953577,-10000.0,0.00035616,7]
[311379710,1705069953586,-10000.0,0.00035616,7]
[311379711,1705069953595,-10000.0,0.00035616,7]
[311379712,1705069953605,-10000.0,0.00035616,7]
[311379713,1705069953614,-10000.0,0.00035616,7]
[311379714,1705069953625,-10000.0,0.00035616,7]
[311379715,1705069953635,-10000.0,0.00035616,7]
[311379716,1705069953644,-10000.0,0.00035616,7]
[311379717,1705069953653,-10000.0,0.00035616,7]
[311379718,1705069953664,-10000.0,0.00035616,7]
[311379719,1705069953673,-10000.0,0.00035616,7]
[311379720,1705069953682,-10000.0,0.00035616,7]
[311379721,1705069953691,-10000.0,0.00035616,7]
[311379722,1705069953702,-10000.0,0.00035616,7]
[311379723,1705069953711,-10000.0,0.00035616,7]
[311379724,1705069953721,-10000.0,0.00035616,7]
[311379725,1705069953732,-10000.0,0.00035616,7]
[311379726,1705069953741,-10000.0,0.00035616,7]
[311379727,1705069953750,-10000.0,0.00035616,7]
[311379728,1705069953760,-10000.0,0.00035616,7]
[311379729,1705069953769,-10000.0,0.00035616,7]
[311379730,1705069953778,-10000.0,0.00035616,7]
[311379731,1705069953787,-10000.0,0.00035616,7]
[311379732,1705069953800,-7715.068822,0.00035616,7]
[311379733,1705069953809,-151.0,0.00035616,7]
[311379734,1705069953819,-151.0,0.00035616,7]
[311379735,1705069953828,-151.0,0.00035616,7]
[311379736,1705069953838,-151.0,0.00035616,7]
[311379737,1705069953847,-151.0,0.00035616,7]
[311379738,1705069953856,-151.0,0.00035616,7]
[311379739,1705069953865,-151.0,0.00035616,7]
[311379740,1705069953874,-151.0,0.00035616,7]
[311379741,1705069953884,-151.0,0.00035616,7]
[311379742,1705069953894,-151.0,0.00035616,7]
[311379743,1705069953903,-151.0,0.00035616,7]
[311379744,1705069953913,-151.0,0.00035616,7]
[311379745,1705069953922,-151.0,0.00035616,7]
[311379746,1705069953932,-151.0,0.00035616,7]
[311379747,1705069953943,-151.0,0.00035616,7]
[311379748,1705069953953,-165.204776,0.00035616,7]
[311379749,1705069953962,-265.810857,0.00035616,7]
[311379750,1705069953972,-265.810857,0.00035616,7]
[311379751,1705069953981,-265.810857,0.00035616,7]
[311379752,1705069953990,-265.810857,0.00035616,7]
[311379753,1705069953999,-265.810857,0.00035616,7]
[311379754,1705069954009,-265.810857,0.00035616,7]
[311379755,1705069954018,-265.810857,0.00035616,7]
[311379756,1705069954027,-265.810857,0.00035616,7]
[311379757,1705069954036,-265.810857,0.00035616,7]
[311379758,1705069954047,-265.810857,0.00035616,7]
[311379759,1705069954056,-265.810857,0.00035616,7]
[311379760,1705069954066,-265.810857,0.00035616,7]
[311379761,1705069954076,-265.810857,0.00035616,7]
[311379762,1705069954085,-265.810857,0.00035616,7]
[311379763,1705069954095,-265.810857,0.00035616,7]
[311379764,1705069954104,-265.810857,0.00035616,7]
[311379765,1705069954114,-265.810857,0.00035616,7]
[311379766,1705069954123,-265.810857,0.00035616,7]
[311379767,1705069954133,-265.810857,0.00035616,7]
[311379768,1705069954142,-265.810855,0.00035616,7]
[311379769,1705069954151,-6200.169811,0.00035616,7]
[311379770,1705069954160,-6200.169811,0.00035616,7]
[311379771,1705069954169,-6200.169811,0.00035616,7]
[311379772,1705069954178,-6200.169811,0.00035616,7]
[311379773,1705069954188,-6200.169811,0.00035616,7]
[311379774,1705069954197,-6200.169811,0.00035616,7]
[311379775,1705069954206,-6200.169811,0.00035616,7]
[311379776,1705069954215,-6200.169811,0.00035616,7]
[311379777,1705069954225,-6200.169811,0.00035616,7]
[311379778,1705069954234,-6200.169811,0.00035616,7]
[311379779,1705069954243,-6200.169811,0.00035616,7]
[311379780,1705069954252,-6200.169811,0.00035616,7]
[311379781,1705069954262,-6200.169811,0.00035616,7]
[311379782,1705069954271,-6200.169811,0.00035616,7]
[311379783,1705069954280,-6200.169811,0.00035616,7]
[311379784,1705069954290,-6200.169811,0.00035616,7]
[311379785,1705069954303,-6200.169811,0.00035616,7]
[311379786,1705069954313,-6200.169811,0.00035616,7]
[311379787,1705069954323,-6200.169811,0.00035616,7]
[311379788,1705069954333,-6200.169807,0.00035616,7]
[311379789,1705069954343,-912.300186,0.00035616,7]
[311379790,1705069954353,-912.300186,0.00035616,7]
[311379791,1705069954363,-912.300186,0.00035616,7]
[311379792,1705069954373,-912.300186,0.00035616,7]
[311379793,1705069954383,-912.300186,0.00035616,7]
[311379794,1705069954394,-912.300186,0.00035616,7]
[311379795,1705069954403,-912.300186,0.00035616,7]
[311379796,1705069954413,-912.300186,0.00035616,7]
[311379797,1705069954422,-912.300186,0.00035616,7]
[311379798,1705069954432,-912.300186,0.00035616,7]
[311379799,1705069954441,-912.300186,0.00035616,7]
[311379800,1705069954450,-912.300186,0.00035616,7]
[311379801,1705069954460,-912.300186,0.00035616,7]
[311379802,1705069954469,-912.300186,0.00035616,7]
[311379803,1705069954478,-912.300186,0.00035616,7]
[311379804,1705069954488,-912.300186,0.00035616,7]
[311379805,1705069954498,-912.300186,0.00035616,7]
[311379806,1705069954508,-912.300186,0.00035616,7]
[311379807,1705069954517,-912.300186,0.00035616,7]
[311379808,1705069954527,-912.300195,0.00035616,7]
[311379809,1705069954536,-767.336428,0.00035616,7]
[311379810,1705069954551,-767.336428,0.00035616,7]
[311379811,1705069954561,-767.336428,0.00035616,7]
[311379812,1705069954570,-767.336428,0.00035616,7]
[311379813,1705069954579,-767.336428,0.00035616,7]
[311379814,1705069954588,-767.336428,0.00035616,7]
[311379815,1705069954598,-767.336428,0.00035616,7]
[311379816,1705069954609,-767.336428,0.00035616,7]
[311379817,1705069954618,-767.336428,0.00035616,7]
[311379818,1705069954628,-767.336428,0.00035616,7]
[311379819,1705069954638,-767.336428,0.00035616,7]
[311379820,1705069954647,-767.336428,0.00035616,7]
[311379821,1705069954657,-767.336428,0.00035616,7]
[311379822,1705069954667,-767.336428,0.00035616,7]
[311379823,1705069954677,-767.336428,0.00035616,7]
[311379824,1705069954686,-767.336428,0.00035616,7]
[311379825,1705069954696,-767.336428,0.00035616,7]
[311379826,1705069954705,-767.336428,0.00035616,7]
[311379827,1705069954715,-767.336428,0.00035616,7]
[311379828,1705069954725,-767.336435,0.00035616,7]
[311379829,1705069954735,-151.0,0.00035616,7]
[311379830,1705069954744,-264.098224,0.00035616,7]
[311379831,1705069954754,-182.413229,0.00035616,7]
[311379832,1705069954763,-163.461057,0.00035616,7]
[311379833,1705069954773,-163.461057,0.00035616,7]
[311379834,1705069954782,-163.461057,0.00035616,7]
[311379835,1705069954792,-163.461057,0.00035616,7]
[311379836,1705069954804,-163.461057,0.00035616,7]
[311379837,1705069954813,-163.461057,0.00035616,7]
[311379838,1705069954822,-163.461057,0.00035616,7]
[311379839,1705069954832,-163.461057,0.00035616,7]
[311379840,1705069954841,-163.461057,0.00035616,7]
[311379841,1705069954851,-163.461057,0.00035616,7]
[311379842,1705069954860,-163.461057,0.00035616,7]
[311379843,1705069954869,-163.461057,0.00035616,7]
[311379844,1705069954878,-163.461057,0.00035616,7]
[311379845,1705069954887,-163.461057,0.00035616,7]
[311379846,1705069954897,-163.461057,0.00035616,7]
[311379847,1705069954906,-163.461057,0.00035616,7]
[311379848,1705069954916,-163.461057,0.00035616,7]
[311379849,1705069954925,-163.461057,0.00035616,7]
[311379850,1705069954936,-163.461057,0.00035616,7]
[311379851,1705069954945,-163.461054,0.00035616,7]
[311379852,1705069954955,-151.0,0.00035616,7]
[311379853,1705069954965,-151.0,0.00035616,7]
[311379854,1705069954975,-151.0,0.00035616,7]
[311379855,1705069954985,-151.0,0.00035616,7]
[311379856,1705069954994,-151.0,0.00035616,7]
[311379857,1705069955004,-151.0,0.00035616,7]
[311379858,1705069955014,-252.902898,0.00035616,7]
[311379859,1705069955024,-151.0,0.00035616,7]
[311379860,1705069955033,-151.0,0.00035616,7]
[311379861,1705069955043,-151.0,0.00035616,7]
[311379862,1705069955055,-151.0,0.00035616,7]
[311379863,1705069955065,-186.004244,0.00035616,7]
[311379864,1705069955075,-151.0,0.00035616,7]
[311379865,1705069955084,-151.0,0.00035616,7]
[311379866,1705069955094,-151.0,0.00035616,7]
[311379867,1705069955103,-151.0,0.00035616,7]
[311379868,1705069955113,-151.0,0.00035616,7]
[311379869,1705069955122,-151.0,0.00035616,7]
[311379870,1705069955132,-251.590277,0.00035616,7]
[311379871,1705069955141,-212.0,0.0003569,2]
[311379872,1705069955150,-215.0,0.0003569,2]
[311379873,1705069955160,-3986.28,0.000357,7]
[311379874,1705069955169,-27087.75,0.000357,7]
[311379875,1705069955178,-660.60505892,0.000357,2]
[311379876,1705069955188,-150.0,0.000357,24]
[311379877,1705069955201,-500.0,0.00035787,7]
[311379878,1705069955211,-2566.33,0.00035798,2]
[311379879,1705069955220,-150.0,0.000358,30]
[311379880,1705069955230,-18259.33767736,0.000358,2]
[311379881,1705069955239,-150.81223045,0.00035868,2]
[311379882,1705069955249,-1382.73759258,0.00035888,30]
[311379883,1705069955258,-100000.0,0.00036,6]
[311379884,1705069955267,-2000.0,0.00036,2]
[311379885,1705069955277,-2000.0,0.00036,10]
[311379886,1705069955286,-1500.0,0.00036,2]
[311379887,1705069955299,-150.0,0.00036,30]
[311379888,1705069955308,-49407.49474746,0.00036,3]
[311379889,1705069955318,-1402.0,0.00036,2]
[311379890,1705069955328,-1000.0,0.00036,6]
[311379891,1705069955337,-1000.0,0.00036,6]
[311379892,1705069955346,-8033.25,0.00036,3]
[311379893,1705069955356,-1660.95673049,0.00036,4]
[311379894,1705069955366,-2384.77487322,0.00036,2]
[311379895,1705069955375,-3100.0,0.00036,120]
[311379896,1705069955385,-2423.98833,0.00036,2]
[311379897,1705069955395,-25263.09397062,0.00036,4]
[311379898,1705069955406,-2500.0,0.00036,14]
[311379899,1705069955415,-3385.65644794,0.00036,2]
[311379900,1705069955715,-2685.70270123,0.00036,2]
[311379901,1705069955725,-2000.0,0.00036,2]
[311379902,1705069955735,-1600.0,0.00036,3]
[311379903,1705069955744,-4540.888268,0.00036024,2]
[311379904,1705069955754,-151.54484705,0.00036032,2]
[311379905,1705069955764,-199.4101961,0.00036089,2]
[311379906,1705069955774,-199.4101961,0.00036089,2]
[311379907,1705069955784,-199.4101961,0.00036089,2]
[311379908,1705069955793,-3986.28,0.000361,7]
[311379909,1705069955806,-27087.75,0.000361,7]
[311379910,1705069955818,-1500.0,0.00036164,14]
[311379911,1705069955827,-150.0,0.000362,30]
[311379912,1705069955836,-150.0,0.000362,25]
[311379913,1705069955846,-308.0054425,0.00036212,8]
[311379914,1705069955855,-308.00544244,0.00036212,8]
[311379915,1705069955864,-308.00544244,0.00036212,8]
[311379916,1705069955874,-308.00544244,0.00036212,8]
[311379917,1705069955883,-308.00544244,0.00036212,8]
[311379918,1705069955893,-150.0,0.00036237,120]
[311379919,1705069955903,-150.0,0.00036241,2]
[311379920,1705069955912,-2270.0,0.0003633,2]
[311379921,1705069955922,-2901.0,0.0003633,2]
[311379922,1705069955931,-422.037,0.0003633,2]
[311379923,1705069955940,-1028.0,0.0003633,2]
[311379924,1705069955950,-212.0,0.0003635,2]
[311379925,1705069955959,-215.0,0.0003635,2]
[311379926,1705069955969,-395.89645585,0.00036374,7]
[311379927,1705069955979,-500.0,0.00036382,7]
[311379928,1705069955988,-150.0,0.000364,30]
[311379929,1705069955998,-152.0,0.0003649,6]
[311379930,1705069956007,-204.0,0.00036495,20]
[311379931,1705069956017,-10000.0,0.00036499,2]
[311379932,1705069956027,-45465.98633026,0.000365,6]
[311379933,1705069956037,-3986.28,0.000365,7]
[311379934,1705069956049,-27087.75,0.000365,7]
[311379935,1705069956058,-5000.0,0.000365,25]
[311379936,1705069956068,-153.84,0.0003653,2]
[311379937,1705069956078,-838.89,0.00036552,2]
[311379938,1705069956087,-1878.92,0.00036552,2]
[311379939,1705069956099,-148.39044899,0.000366,30]
[311379940,1705069956111,-1.60955101,0.000366,30]
[311379941,1705069956297,-10174.94630602,0.000366,7]
[311379942,1705069956331,-300.0,0.000366,10]
[311379943,1705069956341,-150.0,0.000366,10]
[311379944,1705069956350,-1200.0490698,0.000366,4]
[311379945,1705069956359,-841.95,0.00036613,15]
[311379946,1705069956369,-4540.888268,0.00036649,2]
[311379947,1705069956378,-2771.13328959,0.00036696,2]
[311379948,1705069956388,-150.0,0.000367,26]
[311379949,1705069956397,-1398.98504727,0.00036712,16]
[311379950,1705069956407,-150.0,0.000368,30]
[311379951,1705069956416,-2000.0,0.000368,2]
[311379952,1705069956425,-270.81,0.000368,5]
[311379953,1705069956435,-50116.25766505,0.000368,3]
[311379954,1705069956444,-297.05,0.00036878,2]
[311379955,1705069956453,-293.92,0.00036878,2]
[311379956,1705069956463,-417.61,0.00036879,2]
[311379957,1705069956473,-343.79,0.00036879,2]
[311379958,1705069956483,-293.92,0.00036879,2]
[311379959,1705069956492,-293.28,0.00036879,2]
[311379960,1705069956501,-156.75852807,0.00036898,4]
[311379961,1705069956511,-23842.60945554,0.000369,7]
[311379962,1705069956523,-1039.82645864,0.000369,7]
[311379963,1705069956534,-400.92670597,0.000369,7]
[311379964,1705069956547,-9496.71624,0.000369,7]
[311379965,1705069956564,-1602.0513514,0.000369,7]
[311379966,1705069956585,-575.174997,0.000369,7]
[311379967,1705069956601,-5364.02240599,0.000369,7]
[311379968,1705069956617,-1809.58,0.00028883,2]
[311379969,1705069956626,-6166.96252333,0.000369,7]
[311379970,1705069956638,-10456.44425992,0.000369,7]
[311379971,1705069956649,-3393.75214904,0.000369,7]
[311379972,1705069956660,-1800.00005,0.000369,7]
[311379973,1705069956713,-640.57,0.00023676,5]
[311379974,1705069956722,-15372.98,0.000369,7]
[311379975,1705069956734,-1564.76968043,0.000369,7]
[311379976,1705069956746,-4050.44310025,0.000369,7]
[311379977,1705069956757,-552.3024642,0.000369,7]
[311379978,1705069956769,-1346.68996356,0.000369,7]
[311379979,1705069956839,-500.0,0.00022584,2]
[311379980,1705069956848,-4.50399,0.000369,7]
[311379981,1705069956859,-305.44,0.000369,7]
[311379982,1705069956871,-451.41,0.000369,7]
[311379983,1705069956886,-2353.98540349,0.000369,7]
[311379984,1705069956897,-4164.18914271,0.000369,7]
[311379985,1705069958704,-682.9067134,0.000369,7]
[311379986,1705069958715,-347.36,0.000369,7]
[311379987,1705069958727,-1451.60969482,0.000369,7]
[311379988,1705069958739,-542.77583953,0.000369,7]
[311379989,1705069958751,-7776.32662537,0.000369,7]
[311379990,1705069958764,-442.00189353,0.000369,7]
[311379991,1705069958775,-559.3,0.000369,7]
[311379992,1705069958793,-2347.46759022,0.000369,7]
[311379993,1705069958830,-452.73228,0.000369,7]
[311379994,1705069958842,-48901.89225749,0.000369,7]
[311379995,1705069958853,-20000.0,0.000369,7]
[311379996,1705069958866,-558.52464441,0.000369,7]
[311379997,1705069958877,-1450.41419415,0.000369,7]
[311379998,1705069961777,162.66180966,0.00020775,2]
[311379999,1705069962177,449.24,0.00022095,2]
[311380000,1705069962680,178.26,0.00022126,2]
[311380001,1705069966258,2605.00000774,0.00022125,2]
[311380002,1705069966521,3041.02252982,0.00022125,2]
[311380003,1705069967357,3041.02252982,0.00022125,2]
[311380004,1705069967558,2316.14851916,0.00022094,2]
[311380005,1705069967829,262.96284194,0.00020774,2]
[311380006,1705069968506,300.78745742,0.00022093,2]
[311380007,1705069969381,3041.02252982,0.00022093,2]
[311380008,1705069971371,162.00861941,0.00020773,2]
[311380009,1705069971695,162.66180966,0.00020772,2]
[311380015,1705070004574,180646.7356,0.00022464,2]
[311380016,1705070005572,162.66180966,0.00020772,2]
[311380018,1705070064465,-500.0,0.0002258,5]
[311380019,1705070076267,-500.0,0.00022854,5]
[311380020,1705070077515,162.66180966,0.00020772,2]
[311380021,1705070084708,-500.0,0.00023128,5]
[311380022,1705070099524,162.66180966,0.00020772,2]
[311380024,1705070117522,162.66180966,0.00020772,2]
[311380025,1705070137524,157.37766074,0.0002077,2]
[311380026,1705070154535,1276.22018111,0.00020772,5]
[311380027,1705070166565,1275.28467715,0.00020772,5]
[311380028,1705070198457,19482.9798,0.00022482,2]
[311380029,1705070239495,2042.0,0.00031,120]
[311380030,1705070281813,500.0,0.00022044,2]
[311380032,1705070302340,3300.89069545,0.0002077,2]
[311380033,1705070322367,2750.74224621,0.0002077,2]
[311380034,1705070324450,640.6,0.00022044,2]
[311380035,1705070344339,2750.74224621,0.0002077,2]
[311380036,1705070364336,1433.13671028,0.0002077,2]
[311380037,1705070396334,1433.13671028,0.0002077,2]
[311380038,1705070410267,158.23283784,0.00022478,2]
[311380039,1705070420768,1433.13671028,0.0002077,2]
[311380040,1705070436772,1433.13671028,0.0002077,2]
[311380041,1705070454777,1433.13671028,0.0002077,2]
[311380042,1705070470777,152.52,0.00020142,2]
[311380043,1705070472784,1433.13671028,0.0002077,2]
[311380044,1705070488777,1433.13671028,0.0002077,2]
[311380045,1705070508787,1433.13671028,0.0002077,2]
[311380046,1705070526785,1433.13671028,0.0002077,2]
[311380070,1705070558090,1433.13671028,0.0002077,2]
[311380071,1705070584095,1251.57250039,0.0002077,2]
[311380107,1705070689739,-500.0,0.00022583,5]
[311380108,1705070689772,-500.0,0.00022857,5]
[311380109,1705070691729,500.0,0.00021918,2]
[311380113,1705070718146,-500.0,0.00022583,5]
[311380114,1705070718177,-500.0,0.00022857,5]
[311380115,1705070720618,278.4388778,0.0002077,5]
[311380120,1705070774856,487.52,0.00021972,2]
[311380121,1705070788217,-1040.55036639,0.00022566,2]
[311380122,1705070788239,-150.0,0.00022566,2]
[311380123,1705070788261,-730.0,0.00022567,2]
[311380124,1705070788282,-5356.78467786,0.00022569,2]
[311380125,1705070788304,-155.0,0.00022576,2]
[311380126,1705070788332,-326.6529487,0.00022576,2]
[311380127,1705070788353,-177.6089,0.00022576,2]
[311380128,1705070788376,-471.53335445,0.00022576,2]
[311380129,1705070788398,-269.62162648,0.00022576,2]
[311380130,1705070788420,-270.43975547,0.00022576,2]
[311380131,1705070788442,-175.27494352,0.00022576,2]
[311380132,1705070788469,-131.53342713,0.00022577,2]
[311380133,1705070844110,-1511.25159681,0.00022546,2]
[311380134,1705070844130,-2563.95429987,0.00022547,2]
[311380138,1705070940005,155.28,0.0002007,2]
[311380143,1705071009085,2500.0,0.00022482,2]
[311380187,1705071031483,-473.8673768,0.00022541,2]
[311380188,1705071031494,-959.72550029,0.00022542,2]
[311380189,1705071031670,-80.8248661,0.00022542,2]
[311380190,1705071031679,-300.0,0.00022542,2]
[311380191,1705071031689,-33719.15430606,0.00022546,2]
[311380192,1705071031698,-5391.34792666,0.00022547,2]
[311380193,1705071031715,-748.78,0.00022548,2]
[311380194,1705071031727,-150.0,0.00022575,2]
[311380195,1705071031736,-1600.56455232,0.00022576,2]
[311380196,1705071031747,-242.76304663,0.00022576,2]
[311380197,1705071031756,-757.88721717,0.00022576,2]
[311380198,1705071031766,-1432.74500403,0.00022576,2]
[311380199,1705071031776,-547.89012436,0.00022577,2]
[311380200,1705071031785,-307.79688368,0.00022578,2]
[311380201,1705071031795,-4441.23242662,0.00022578,2]
[311380202,1705071031806,-16725.20422231,0.00022578,2]
[311380203,1705071031815,-299.1474797,0.00022578,2]
[311380204,1705071031826,-1423.92909811,0.00022578,2]
[311380205,1705071031836,-212.12326525,0.00022578,2]
[311380206,1705071031873,-214.71676808,0.00022578,2]
[311380207,1705071031883,-265.07070248,0.00022578,2]
[311380208,1705071031896,-541.86350039,0.00022578,2]
[311380209,1705071031905,-1910.0088786,0.00022578,2]
[311380210,1705071031915,-4114.96948512,0.00022578,2]
[311380211,1705071031925,-155.38188479,0.00022578,2]